[Event "*** MasterClass Titled Tuesday Blitz"]
[Site "Chess.com"]
[Date "2017.10.03"]
[Round "9"]
[White "Indianlad"]
[Black "swayamsm"]
[Result "1/2-1/2"]
[WhiteElo "2593"]
[BlackElo "2494"]
[TimeControl "180+2"]
[EndTime "15:06:43 PDT"]
[Termination "Game drawn - insufficient material"]

1. e4 {[%clk 0:00:18.4]} 1... e5 {[%clk 0:02:50.9]} 2. Nc3 {[%clk 0:00:19.7]}
2... Nf6 {[%clk 0:02:50]} 3. Nf3 {[%clk 0:00:21.3]} 3... Nc6 {[%clk 0:02:50.2]}
4. Bb5 {[%clk 0:00:22.4]} 4... Nd4 {[%clk 0:02:49.9]} 5. Bc4 {[%clk 0:00:22.4]}
5... Nxf3+ {[%clk 0:02:49.2]} 6. Qxf3 {[%clk 0:00:23.2]} 6... c6 {[%clk
0:02:48.3]} 7. d3 {[%clk 0:00:24.7]} 7... Be7 {[%clk 0:02:45.4]} 8. h3 {[%clk
0:00:26.1]} 8... O-O {[%clk 0:02:44]} 9. O-O {[%clk 0:00:27.6]} 9... b5 {[%clk
0:02:37.2]} 10. Bb3 {[%clk 0:00:29.5]} 10... a5 {[%clk 0:02:38.3]} 11. a4 {[%clk
0:00:30.2]} 11... b4 {[%clk 0:02:38.8]} 12. Ne2 {[%clk 0:00:31.2]} 12... d5
{[%clk 0:02:40.2]} 13. Ng3 {[%clk 0:00:32.6]} 13... Bb7 {[%clk 0:02:33]} 14. Re1
{[%clk 0:00:33.7]} 14... Qc7 {[%clk 0:02:23]} 15. Nf5 {[%clk 0:00:34.8]} 15...
Rfe8 {[%clk 0:02:22]} 16. Bg5 {[%clk 0:00:35.3]} 16... Rad8 {[%clk 0:02:05.9]}
17. Rad1 {[%clk 0:00:36.6]} 17... Bc8 {[%clk 0:01:59.2]} 18. Nxe7+ {[%clk
0:00:37.1]} 18... Qxe7 {[%clk 0:01:59.5]} 19. exd5 {[%clk 0:00:38.1]} 19... cxd5
{[%clk 0:01:54]} 20. Bxf6 {[%clk 0:00:38.8]} 20... Qxf6 {[%clk 0:01:52.6]} 21.
Bxd5 {[%clk 0:00:40.1]} 21... Qxf3 {[%clk 0:01:44.6]} 22. Bxf3 {[%clk
0:00:40.4]} 22... Bd7 {[%clk 0:01:45.7]} 23. b3 {[%clk 0:00:38.8]} 23... Rc8
{[%clk 0:01:46.6]} 24. Rd2 {[%clk 0:00:39.7]} 24... Kf8 {[%clk 0:01:46.1]} 25.
Bd1 {[%clk 0:00:38.3]} 25... Bf5 {[%clk 0:01:41.7]} 26. Rde2 {[%clk 0:00:38.3]}
26... f6 {[%clk 0:01:41.7]} 27. f3 {[%clk 0:00:39.4]} 27... Red8 {[%clk
0:01:38.3]} 28. Kf2 {[%clk 0:00:41.3]} 28... g5 {[%clk 0:01:37.5]} 29. h4 {[%clk
0:00:41.7]} 29... gxh4 {[%clk 0:01:33.5]} 30. f4 {[%clk 0:00:43]} 30... exf4
{[%clk 0:01:30.3]} 31. Re7 {[%clk 0:00:44.1]} 31... Re8 {[%clk 0:01:26.1]} 32.
Rxe8+ {[%clk 0:00:42.5]} 32... Rxe8 {[%clk 0:01:28]} 33. Rh1 {[%clk 0:00:44.1]}
33... h3 {[%clk 0:01:26.7]} 34. gxh3 {[%clk 0:00:44.7]} 34... Re3 {[%clk
0:01:28]} 35. Bf3 {[%clk 0:00:45.7]} 35... Ke7 {[%clk 0:01:24.7]} 36. Rg1 {[%clk
0:00:46.8]} 36... Kd6 {[%clk 0:01:17.1]} 37. Rg7 {[%clk 0:00:45.4]} 37... Re7
{[%clk 0:01:12.6]} 38. Rg8 {[%clk 0:00:40.9]} 38... Rc7 {[%clk 0:00:59.8]} 39.
Bd1 {[%clk 0:00:40.2]} 39... Bxh3 {[%clk 0:01:00.6]} 40. Kf3 {[%clk 0:00:40.8]}
40... Ke5 {[%clk 0:00:58.9]} 41. Re8+ {[%clk 0:00:40.5]} 41... Be6 {[%clk
0:00:59.3]} 42. d4+ {[%clk 0:00:41.6]} 42... Kd5 {[%clk 0:00:48.3]} 43. Kxf4
{[%clk 0:00:42.5]} 43... Bd7 {[%clk 0:00:47]} 44. Ra8 {[%clk 0:00:42.7]} 44...
Kxd4 {[%clk 0:00:43.7]} 45. Rxa5 {[%clk 0:00:44.1]} 45... Be6 {[%clk 0:00:44.6]}
46. Ra6 {[%clk 0:00:44.9]} 46... Re7 {[%clk 0:00:38.5]} 47. Bg4 {[%clk
0:00:45.5]} 47... Bxg4 {[%clk 0:00:35.2]} 48. Kxg4 {[%clk 0:00:47.4]} 48... Rc7
{[%clk 0:00:35.2]} 49. Rb6 {[%clk 0:00:33.8]} 49... Kc3 {[%clk 0:00:26.2]} 50.
a5 {[%clk 0:00:35.1]} 50... Rc5 {[%clk 0:00:24.9]} 51. a6 {[%clk 0:00:34.8]}
51... Ra5 {[%clk 0:00:26.1]} 52. Rc6+ {[%clk 0:00:34.8]} 52... Kb2 {[%clk
0:00:26.9]} 53. Kh4 {[%clk 0:00:35.1]} 53... h5 {[%clk 0:00:25.3]} 54. Kg3
{[%clk 0:00:33.1]} 54... f5 {[%clk 0:00:23.7]} 55. Rc4 {[%clk 0:00:34]} 55...
Ka3 {[%clk 0:00:20.8]} 56. Rc6 {[%clk 0:00:24.1]} 56... Kb2 {[%clk 0:00:21]} 57.
Rc4 {[%clk 0:00:24.3]} 57... Ka3 {[%clk 0:00:16.4]} 58. c3 {[%clk 0:00:22.2]}
58... Kxb3 {[%clk 0:00:15.4]} 59. cxb4 {[%clk 0:00:16.6]} 59... Rxa6 {[%clk
0:00:14]} 60. Rc5 {[%clk 0:00:17.3]} 60... Rg6+ {[%clk 0:00:12.9]} 61. Kh4
{[%clk 0:00:16.5]} 61... Rf6 {[%clk 0:00:11.2]} 62. Kg5 {[%clk 0:00:16.1]} 62...
Rf8 {[%clk 0:00:12.1]} 63. Rxf5 {[%clk 0:00:15.3]} 63... Rxf5+ {[%clk 0:00:14]}
64. Kxf5 {[%clk 0:00:17.2]} 64... Kxb4 {[%clk 0:00:14.8]} 65. Kg5 {[%clk
0:00:18.7]} 65... h4 {[%clk 0:00:14.8]} 66. Kg4 {[%clk 0:00:19.5]} 66... Kc3
{[%clk 0:00:14.9]} 67. Kf3 {[%clk 0:00:19.8]} 67... Kd4 {[%clk 0:00:16.8]} 68.
Kg4 {[%clk 0:00:20.9]} 68... Kd3 {[%clk 0:00:18.7]} 69. Kh3 {[%clk 0:00:22.2]}
69... Ke2 {[%clk 0:00:20.6]} 70. Kxh4 {[%clk 0:00:24.1]} 1/2-1/2

[Event "*** MasterClass Titled Tuesday Blitz"]
[Site "Chess.com"]
[Date "2017.10.03"]
[Round "10"]
[White "pastouche06"]
[Black "Lawliet64"]
[Result "0-1"]
[WhiteElo "2263"]
[BlackElo "2075"]
[TimeControl "180+2"]
[EndTime "15:10:19 PDT"]
[Termination "Lawliet64 won by resignation"]

1. e4 {[%clk 0:03:01.9]} 1... c5 {[%clk 0:02:55]} 2. Nf3 {[%clk 0:03:01.8]} 2...
d6 {[%clk 0:02:55.5]} 3. d4 {[%clk 0:03:02.3]} 3... cxd4 {[%clk 0:02:55.4]} 4.
Nxd4 {[%clk 0:03:04.2]} 4... Nf6 {[%clk 0:02:56.7]} 5. Nc3 {[%clk 0:03:05.3]}
5... a6 {[%clk 0:02:58.1]} 6. Bg5 {[%clk 0:03:05.6]} 6... e6 {[%clk 0:02:58.7]}
7. f4 {[%clk 0:03:06.9]} 7... Be7 {[%clk 0:02:59.9]} 8. Qf3 {[%clk 0:03:08.1]}
8... Qc7 {[%clk 0:03:00.9]} 9. O-O-O {[%clk 0:03:09.3]} 9... O-O {[%clk
0:03:01.2]} 10. g4 {[%clk 0:03:08.5]} 10... Nc6 {[%clk 0:03:00.9]} 11. h4 {[%clk
0:03:04]} 11... Nxd4 {[%clk 0:03:01.2]} 12. Rxd4 {[%clk 0:03:05.9]} 12... b5
{[%clk 0:03:02.4]} 13. Bg2 {[%clk 0:03:05]} 13... Bb7 {[%clk 0:03:03.7]} 14.
Rhd1 {[%clk 0:03:04.8]} 14... Rac8 {[%clk 0:03:04.5]} 15. Qg3 {[%clk 0:02:49.4]}
15... b4 {[%clk 0:03:00]} 16. Rxb4 {[%clk 0:02:48]} 16... d5 {[%clk 0:03:00.3]}
17. Rxb7 {[%clk 0:02:47.7]} 17... Qxb7 {[%clk 0:02:55]} 18. exd5 {[%clk
0:02:48.7]} 18... Nxd5 {[%clk 0:02:54.9]} 19. Bxe7 {[%clk 0:02:37.6]} 19... Qxe7
{[%clk 0:02:54.4]} 20. Nxd5 {[%clk 0:02:37.8]} 20... exd5 {[%clk 0:02:54.6]} 21.
Bxd5 {[%clk 0:02:39.2]} 21... Rfd8 {[%clk 0:02:53.3]} 22. c4 {[%clk 0:02:35.4]}
22... Qe2 {[%clk 0:02:41.9]} 23. Qg1 {[%clk 0:02:02.5]} 23... Rxd5 {[%clk
0:02:34.3]} 0-1

[Event "*** MasterClass Titled Tuesday Blitz"]
[Site "Chess.com"]
[Date "2017.10.03"]
[Round "10"]
[White "fidetrainerNET"]
[Black "Quiet_Desperation"]
[Result "0-1"]
[WhiteElo "2046"]
[BlackElo "2288"]
[TimeControl "180+2"]
[EndTime "15:10:47 PDT"]
[Termination "Quiet_Desperation won by checkmate"]

1. f4 {[%clk 0:03:01.9]} 1... d5 {[%clk 0:02:58.9]} 2. d4 {[%clk 0:03:03.8]}
2... c5 {[%clk 0:02:56.9]} 3. dxc5 {[%clk 0:03:03.5]} 3... Nc6 {[%clk
0:02:56.7]} 4. e4 {[%clk 0:03:02.6]} 4... d4 {[%clk 0:02:55.2]} 5. c3 {[%clk
0:03:03.2]} 5... e5 {[%clk 0:02:56]} 6. Bb5 {[%clk 0:02:59.1]} 6... Bxc5 {[%clk
0:02:52.7]} 7. Nf3 {[%clk 0:02:59.6]} 7... Bg4 {[%clk 0:02:51.8]} 8. fxe5 {[%clk
0:02:59.7]} 8... Ne7 {[%clk 0:02:32.3]} 9. cxd4 {[%clk 0:03:00.3]} 9... Bxf3
{[%clk 0:02:32.8]} 10. gxf3 {[%clk 0:02:58.1]} 10... Bxd4 {[%clk 0:02:32.9]} 11.
f4 {[%clk 0:02:56.7]} 11... Qa5+ {[%clk 0:02:30.8]} 12. Nc3 {[%clk 0:02:55.5]}
12... Bxc3+ {[%clk 0:02:30.9]} 13. bxc3 {[%clk 0:02:55.6]} 13... Qxb5 {[%clk
0:02:31.5]} 14. Ba3 {[%clk 0:02:52.7]} 14... Qc4 {[%clk 0:02:25.4]} 15. Qf3
{[%clk 0:02:40.4]} 15... O-O-O {[%clk 0:02:22.8]} 16. Rg1 {[%clk 0:02:40.7]}
16... Rd3 {[%clk 0:02:21.8]} 17. Qg4+ {[%clk 0:02:38]} 17... Kb8 {[%clk
0:02:15.9]} 18. Qxg7 {[%clk 0:02:35.4]} 18... Qxe4+ {[%clk 0:02:08.4]} 19. Kf2
{[%clk 0:02:32.2]} 19... Rd2+ {[%clk 0:02:03.7]} 20. Kg3 {[%clk 0:02:31.5]}
20... Nf5+ {[%clk 0:02:04.6]} 21. Kh3 {[%clk 0:02:31.3]} 21... Nxg7 {[%clk
0:02:02.9]} 22. Rxg7 {[%clk 0:02:33.2]} 22... Qf3+ {[%clk 0:01:47.1]} 23. Kh4
{[%clk 0:02:28.5]} 23... Qxf4+ {[%clk 0:01:47.1]} 24. Kh5 {[%clk 0:02:26.7]}
24... Rxh2# {[%clk 0:01:47]} 0-1

[Event "*** MasterClass Titled Tuesday Blitz"]
[Site "Chess.com"]
[Date "2017.10.03"]
[Round "10"]
[White "BogdanDeac"]
[Black "guilhermedeola"]
[Result "1-0"]
[WhiteElo "2611"]
[BlackElo "2085"]
[TimeControl "180+2"]
[EndTime "15:11:01 PDT"]
[Termination "BogdanDeac won by checkmate"]

1. d4 {[%clk 0:02:18.1]} 1... g6 {[%clk 0:02:58.4]} 2. e4 {[%clk 0:02:18.3]}
2... Bg7 {[%clk 0:02:59.3]} 3. Nc3 {[%clk 0:02:19.3]} 3... c5 {[%clk 0:02:55]}
4. dxc5 {[%clk 0:02:18.5]} 4... Nc6 {[%clk 0:02:50.6]} 5. Be3 {[%clk 0:02:16.7]}
5... Qa5 {[%clk 0:02:49.1]} 6. Qd2 {[%clk 0:02:17.4]} 6... Bxc3 {[%clk
0:02:49.4]} 7. Qxc3 {[%clk 0:02:17.7]} 7... Qxc3+ {[%clk 0:02:50]} 8. bxc3
{[%clk 0:02:18.6]} 8... Nf6 {[%clk 0:02:49.2]} 9. f3 {[%clk 0:02:18.6]} 9... O-O
{[%clk 0:02:49.3]} 10. Bb5 {[%clk 0:02:16.8]} 10... Ne8 {[%clk 0:02:50]} 11. Ne2
{[%clk 0:02:15.6]} 11... Nc7 {[%clk 0:02:50.3]} 12. Ba4 {[%clk 0:02:16.3]} 12...
Rd8 {[%clk 0:02:47]} 13. Nf4 {[%clk 0:02:13.9]} 13... d6 {[%clk 0:02:43.9]} 14.
O-O-O {[%clk 0:02:14.2]} 14... dxc5 {[%clk 0:02:41.7]} 15. Bxc6 {[%clk 0:02:14]}
15... Rxd1+ {[%clk 0:02:42.1]} 16. Rxd1 {[%clk 0:02:11.7]} 16... bxc6 {[%clk
0:02:43.5]} 17. Rd8+ {[%clk 0:02:11.2]} 17... Kg7 {[%clk 0:02:43.8]} 18. Bxc5
{[%clk 0:02:12.2]} 18... g5 {[%clk 0:02:37.4]} 19. Nh5+ {[%clk 0:01:53.9]} 19...
Kh6 {[%clk 0:02:38]} 20. Ng3 {[%clk 0:01:48.2]} 20... Ne6 {[%clk 0:02:37.6]} 21.
Nf5+ {[%clk 0:01:47.8]} 21... Kg6 {[%clk 0:02:30.1]} 22. Rg8+ {[%clk 0:01:47.1]}
22... Kf6 {[%clk 0:02:21.4]} 23. Bxe7+ {[%clk 0:01:47.6]} 23... Ke5 {[%clk
0:02:21.3]} 24. Bd6+ {[%clk 0:01:48.6]} 24... Kf6 {[%clk 0:02:21.4]} 25. g4
{[%clk 0:01:47.8]} 25... Bb7 {[%clk 0:02:21.3]} 26. e5# {[%clk 0:01:47.8]} 1-0

[Event "*** MasterClass Titled Tuesday Blitz"]
[Site "Chess.com"]
[Date "2017.10.03"]
[Round "10"]
[White "kleinebeer98"]
[Black "Diwi89"]
[Result "0-1"]
[WhiteElo "2498"]
[BlackElo "2537"]
[TimeControl "180+2"]
[EndTime "15:11:21 PDT"]
[Termination "Diwi89 won by checkmate"]

1. e4 {[%clk 0:03:00.5]} 1... c6 {[%clk 0:02:59]} 2. d4 {[%clk 0:03:01.1]} 2...
d5 {[%clk 0:02:54]} 3. f3 {[%clk 0:03:02.6]} 3... e5 {[%clk 0:02:51]} 4. dxe5
{[%clk 0:03:01.7]} 4... Bc5 {[%clk 0:02:52]} 5. Nc3 {[%clk 0:03:01]} 5... Qb6
{[%clk 0:02:51]} 6. Na4 {[%clk 0:03:01.7]} 6... Bf2+ {[%clk 0:02:50.9]} 7. Ke2
{[%clk 0:03:02.8]} 7... Qd4 {[%clk 0:02:49.5]} 8. Qxd4 {[%clk 0:02:50.6]} 8...
Bxd4 {[%clk 0:02:51.4]} 9. exd5 {[%clk 0:02:47.6]} 9... Bxe5 {[%clk 0:02:52.4]}
10. f4 {[%clk 0:02:42.3]} 10... Bc7 {[%clk 0:02:50.8]} 11. dxc6 {[%clk
0:02:25.5]} 11... Nxc6 {[%clk 0:02:52.7]} 12. c3 {[%clk 0:02:20.8]} 12... Nf6
{[%clk 0:02:53.4]} 13. g3 {[%clk 0:02:12]} 13... Bg4+ {[%clk 0:02:48.5]} 14. Kf2
{[%clk 0:02:05.4]} 14... O-O-O {[%clk 0:02:48.7]} 15. Be2 {[%clk 0:01:50.3]}
15... h5 {[%clk 0:02:41.9]} 16. Be3 {[%clk 0:01:32.8]} 16... Rhe8 {[%clk
0:02:40.6]} 17. Re1 {[%clk 0:01:07.9]} 17... Bxe2 {[%clk 0:02:35.1]} 18. Rxe2
{[%clk 0:01:06.3]} 18... Ng4+ {[%clk 0:02:36]} 19. Kf3 {[%clk 0:01:07.1]} 19...
Rd3 {[%clk 0:02:36.7]} 20. Rg2 {[%clk 0:00:41.1]} 20... Rexe3# {[%clk 0:02:35]}
0-1

[Event "*** MasterClass Titled Tuesday Blitz"]
[Site "Chess.com"]
[Date "2017.10.03"]
[Round "10"]
[White "GameOverBro"]
[Black "Dhaydon19"]
[Result "0-1"]
[WhiteElo "2308"]
[BlackElo "2459"]
[TimeControl "180+2"]
[EndTime "15:12:14 PDT"]
[Termination "Dhaydon19 won by resignation"]

1. e4 {[%clk 0:03:01.9]} 1... c5 {[%clk 0:03:00.3]} 2. Ne2 {[%clk 0:03:02.3]}
2... d6 {[%clk 0:03:01.3]} 3. g3 {[%clk 0:03:02.9]} 3... Nf6 {[%clk 0:03:01.8]}
4. Bg2 {[%clk 0:03:03.9]} 4... g6 {[%clk 0:03:03]} 5. O-O {[%clk 0:03:03.9]}
5... Bg7 {[%clk 0:03:04.2]} 6. c3 {[%clk 0:03:05.4]} 6... O-O {[%clk 0:03:05.4]}
7. d4 {[%clk 0:03:06.5]} 7... cxd4 {[%clk 0:03:06.5]} 8. cxd4 {[%clk 0:03:07.1]}
8... Nc6 {[%clk 0:03:07.8]} 9. Nbc3 {[%clk 0:03:07.8]} 9... e5 {[%clk
0:03:06.5]} 10. d5 {[%clk 0:03:03.5]} 10... Ne7 {[%clk 0:03:06.9]} 11. a4 {[%clk
0:02:51]} 11... Bd7 {[%clk 0:03:04.9]} 12. a5 {[%clk 0:02:51.6]} 12... Nh5
{[%clk 0:03:01.6]} 13. Qb3 {[%clk 0:02:51]} 13... b5 {[%clk 0:02:49.6]} 14. axb6
{[%clk 0:02:49.5]} 14... Qxb6 {[%clk 0:02:48.8]} 15. Qxb6 {[%clk 0:02:48.6]}
15... axb6 {[%clk 0:02:48.8]} 16. Be3 {[%clk 0:02:49.9]} 16... b5 {[%clk
0:02:49.7]} 17. Na2 {[%clk 0:02:33.3]} 17... f5 {[%clk 0:02:48.4]} 18. f3 {[%clk
0:02:32.4]} 18... fxe4 {[%clk 0:02:36.9]} 19. fxe4 {[%clk 0:02:32.6]} 19...
Rxf1+ {[%clk 0:02:34.5]} 20. Bxf1 {[%clk 0:02:33.1]} 20... Nf6 {[%clk
0:02:21.2]} 21. Bg2 {[%clk 0:02:16.5]} 21... Bg4 {[%clk 0:02:20]} 22. Nec1
{[%clk 0:02:16.3]} 22... Bd1 {[%clk 0:02:13.2]} 23. b4 {[%clk 0:02:13.5]} 23...
Bc2 {[%clk 0:02:08.9]} 24. Bg5 {[%clk 0:02:11.9]} 24... h6 {[%clk 0:02:00.6]}
25. Bxf6 {[%clk 0:02:12.8]} 25... Bxf6 {[%clk 0:02:01]} 26. Kf2 {[%clk
0:02:14.3]} 26... Bg5 {[%clk 0:02:00.6]} 27. Ne2 {[%clk 0:02:05.5]} 27... Bb3
{[%clk 0:01:52.1]} 28. Nec3 {[%clk 0:01:54.9]} 28... Bd2 {[%clk 0:01:49.8]} 29.
Nxb5 {[%clk 0:01:53.9]} 29... Rxa2 {[%clk 0:01:43.7]} 30. Rxa2 {[%clk
0:01:51.8]} 30... Bxa2 {[%clk 0:01:44.3]} 31. Nxd6 {[%clk 0:01:52.8]} 31... Bxb4
{[%clk 0:01:44.4]} 32. Nb5 {[%clk 0:01:50.2]} 32... Nc8 {[%clk 0:01:44.2]} 33.
Bh3 {[%clk 0:01:49.8]} 33... Nd6 {[%clk 0:01:43.8]} 34. Be6+ {[%clk 0:01:49.1]}
34... Kg7 {[%clk 0:01:44.5]} 35. Na7 {[%clk 0:01:48.4]} 35... Bc5+ {[%clk
0:01:44.7]} 36. Kf3 {[%clk 0:01:48.7]} 36... Bxa7 {[%clk 0:01:45.4]} 0-1

[Event "*** MasterClass Titled Tuesday Blitz"]
[Site "Chess.com"]
[Date "2017.10.03"]
[Round "10"]
[White "jefferyx"]
[Black "GrigorGrigorov"]
[Result "1/2-1/2"]
[WhiteElo "2782"]
[BlackElo "2743"]
[TimeControl "180+2"]
[EndTime "15:12:26 PDT"]
[Termination "Game drawn by agreement"]

1. d4 {[%clk 0:03:01.9]} 1... Nf6 {[%clk 0:03:00.5]} 2. c4 {[%clk 0:03:03]} 2...
e6 {[%clk 0:03:01.4]} 3. Nf3 {[%clk 0:03:03.5]} 3... b6 {[%clk 0:03:02.5]} 4. g3
{[%clk 0:03:04.2]} 4... Bb7 {[%clk 0:03:03.7]} 5. Bg2 {[%clk 0:03:05.7]} 5...
Be7 {[%clk 0:03:04.6]} 6. O-O {[%clk 0:03:06.7]} 6... O-O {[%clk 0:03:05.7]} 7.
Re1 {[%clk 0:03:06.1]} 7... Ne4 {[%clk 0:03:06.5]} 8. Bf4 {[%clk 0:02:57.7]}
8... d5 {[%clk 0:02:59.5]} 9. cxd5 {[%clk 0:02:57.1]} 9... exd5 {[%clk
0:02:58.9]} 10. Nc3 {[%clk 0:02:52.6]} 10... c5 {[%clk 0:02:56.1]} 11. Qc2
{[%clk 0:02:39.8]} 11... Nc6 {[%clk 0:02:44.8]} 12. Red1 {[%clk 0:02:10.2]}
12... Nxd4 {[%clk 0:02:27.2]} 13. Nxd4 {[%clk 0:02:09.8]} 13... cxd4 {[%clk
0:02:28.4]} 14. Nxe4 {[%clk 0:02:09.4]} 14... dxe4 {[%clk 0:02:28.2]} 15. Bxe4
{[%clk 0:02:11.3]} 15... Bxe4 {[%clk 0:02:29.2]} 16. Qxe4 {[%clk 0:02:13.2]}
16... Bf6 {[%clk 0:02:29.5]} 17. e3 {[%clk 0:01:08.9]} 17... Re8 {[%clk
0:02:20.7]} 18. Qf3 {[%clk 0:01:10]} 18... d3 {[%clk 0:02:00.1]} 19. e4 {[%clk
0:01:02.8]} 19... Qd4 {[%clk 0:02:00.3]} 20. Rxd3 {[%clk 0:00:54.7]} 20... Qxe4
{[%clk 0:01:58.2]} 21. Qxe4 {[%clk 0:00:48.5]} 21... Rxe4 {[%clk 0:02:00.1]} 22.
Rc1 {[%clk 0:00:47.9]} 1/2-1/2

[Event "*** MasterClass Titled Tuesday Blitz"]
[Site "Chess.com"]
[Date "2017.10.03"]
[Round "10"]
[White "SabinaFoisor"]
[Black "pandamaster3000"]
[Result "0-1"]
[WhiteElo "2324"]
[BlackElo "2202"]
[TimeControl "180+2"]
[EndTime "15:12:31 PDT"]
[Termination "pandamaster3000 won on time"]

1. d4 {[%clk 0:02:19.3]} 1... Nf6 {[%clk 0:02:59.5]} 2. c4 {[%clk 0:02:19]} 2...
g6 {[%clk 0:03:00.1]} 3. Nf3 {[%clk 0:02:17]} 3... Bg7 {[%clk 0:03:01.4]} 4. Nc3
{[%clk 0:02:17.5]} 4... O-O {[%clk 0:03:02.1]} 5. Bg5 {[%clk 0:02:18.4]} 5... d6
{[%clk 0:02:59.6]} 6. e3 {[%clk 0:02:19.4]} 6... Nbd7 {[%clk 0:02:58.9]} 7. Be2
{[%clk 0:02:20.1]} 7... h6 {[%clk 0:03:00.1]} 8. Bh4 {[%clk 0:02:20.9]} 8... c6
{[%clk 0:03:00]} 9. O-O {[%clk 0:02:19.4]} 9... Re8 {[%clk 0:03:00.1]} 10. Qc2
{[%clk 0:02:04.8]} 10... Qc7 {[%clk 0:03:00.3]} 11. Rfd1 {[%clk 0:01:53]} 11...
e5 {[%clk 0:02:57.8]} 12. b4 {[%clk 0:01:38.6]} 12... a5 {[%clk 0:02:44.5]} 13.
a3 {[%clk 0:01:37.7]} 13... Nf8 {[%clk 0:02:38.5]} 14. Bxf6 {[%clk 0:01:18]}
14... Bxf6 {[%clk 0:02:36.7]} 15. Ne4 {[%clk 0:01:18.1]} 15... Bg7 {[%clk
0:02:36.2]} 16. dxe5 {[%clk 0:01:14.9]} 16... dxe5 {[%clk 0:02:37.3]} 17. Nd6
{[%clk 0:01:12]} 17... Rd8 {[%clk 0:02:37.5]} 18. c5 {[%clk 0:01:06.6]} 18...
Ne6 {[%clk 0:02:25.9]} 19. Ne4 {[%clk 0:00:57.6]} 19... Bd7 {[%clk 0:02:15.3]}
20. h3 {[%clk 0:00:52.6]} 20... Nf8 {[%clk 0:02:06.2]} 21. Bc4 {[%clk
0:00:40.3]} 21... Bf5 {[%clk 0:02:04.1]} 0-1

[Event "*** MasterClass Titled Tuesday Blitz"]
[Site "Chess.com"]
[Date "2017.10.03"]
[Round "10"]
[White "JSPrepz"]
[Black "mazetofonias"]
[Result "1-0"]
[WhiteElo "2538"]
[BlackElo "2493"]
[TimeControl "180+2"]
[EndTime "15:13:02 PDT"]
[Termination "JSPrepz won by checkmate"]

1. e4 {[%clk 0:03:01.4]} 1... c5 {[%clk 0:03:00.5]} 2. Nf3 {[%clk 0:02:58.1]}
2... d6 {[%clk 0:03:01.8]} 3. Nc3 {[%clk 0:02:58.1]} 3... a6 {[%clk 0:03:02.3]}
4. a4 {[%clk 0:02:57.1]} 4... Nf6 {[%clk 0:03:02.2]} 5. e5 {[%clk 0:02:58.3]}
5... dxe5 {[%clk 0:03:02.7]} 6. Nxe5 {[%clk 0:02:59.3]} 6... Nbd7 {[%clk
0:03:04.3]} 7. Nc4 {[%clk 0:02:57]} 7... Nb6 {[%clk 0:03:00.3]} 8. a5 {[%clk
0:02:54]} 8... Nxc4 {[%clk 0:03:01.1]} 9. Bxc4 {[%clk 0:02:54.8]} 9... Bf5
{[%clk 0:03:00.9]} 10. Qf3 {[%clk 0:02:54.2]} 10... Qd7 {[%clk 0:02:59.6]} 11.
O-O {[%clk 0:02:53.1]} 11... e6 {[%clk 0:02:59]} 12. d3 {[%clk 0:02:52.9]} 12...
Be7 {[%clk 0:02:59.3]} 13. h3 {[%clk 0:02:54.1]} 13... O-O {[%clk 0:02:59.8]}
14. Na4 {[%clk 0:02:55.2]} 14... Rad8 {[%clk 0:02:59.4]} 15. Nb6 {[%clk
0:02:56]} 15... Qc7 {[%clk 0:02:57.9]} 16. Bf4 {[%clk 0:02:54.7]} 16... Bd6
{[%clk 0:02:59.2]} 17. Bg5 {[%clk 0:02:55.9]} 17... Be7 {[%clk 0:03:00]} 18.
Rae1 {[%clk 0:02:55.3]} 18... Bg6 {[%clk 0:03:00.5]} 19. Bh4 {[%clk 0:02:50.3]}
19... Rfe8 {[%clk 0:02:50.2]} 20. Bg3 {[%clk 0:02:50.6]} 20... Bd6 {[%clk
0:02:50.7]} 21. Bh4 {[%clk 0:02:51]} 21... Be7 {[%clk 0:02:51.3]} 22. Bg3 {[%clk
0:02:52.1]} 22... Bd6 {[%clk 0:02:52.1]} 23. Bxd6 {[%clk 0:02:53.7]} 23... Rxd6
{[%clk 0:02:52.8]} 24. Re3 {[%clk 0:02:44.8]} 24... Nd7 {[%clk 0:02:53.2]} 25.
Nd5 {[%clk 0:02:40.2]} 25... Qxa5 {[%clk 0:02:49.7]} 26. Rfe1 {[%clk 0:02:39.8]}
26... Qd8 {[%clk 0:02:49.4]} 27. Nf4 {[%clk 0:02:39.8]} 27... Nf6 {[%clk
0:02:49.7]} 28. g4 {[%clk 0:02:37.6]} 28... b5 {[%clk 0:02:49.6]} 29. Bb3 {[%clk
0:02:36.4]} 29... Qc8 {[%clk 0:02:35.9]} 30. g5 {[%clk 0:02:36.5]} 30... Nd7
{[%clk 0:02:36.9]} 31. h4 {[%clk 0:02:37.4]} 31... c4 {[%clk 0:02:37.6]} 32. Ba2
{[%clk 0:02:35.4]} 32... Bf5 {[%clk 0:02:37.4]} 33. h5 {[%clk 0:02:33.1]} 33...
Qd8 {[%clk 0:02:36.3]} 34. Qg3 {[%clk 0:02:33]} 34... cxd3 {[%clk 0:02:35.3]}
35. g6 {[%clk 0:02:32.2]} 35... hxg6 {[%clk 0:02:32.4]} 36. hxg6 {[%clk
0:02:31]} 36... d2 {[%clk 0:02:21.3]} 37. gxf7+ {[%clk 0:02:31]} 37... Kxf7
{[%clk 0:02:23.2]} 38. Rd1 {[%clk 0:02:32.1]} 38... Nf8 {[%clk 0:02:20.2]} 39.
Nh5 {[%clk 0:02:32.8]} 39... Ng6 {[%clk 0:02:13.5]} 40. Re5 {[%clk 0:02:30.9]}
40... Bxc2 {[%clk 0:01:59.2]} 41. f3 {[%clk 0:02:20.2]} 41... Bxd1 {[%clk
0:01:53.3]} 42. Rf5+ {[%clk 0:02:21.2]} 42... Qf6 {[%clk 0:01:32.6]} 43. Rxf6+
{[%clk 0:02:19]} 43... gxf6 {[%clk 0:01:34.5]} 44. Qxd6 {[%clk 0:02:19.7]} 44...
Bxf3 {[%clk 0:01:29.2]} 45. Qd7+ {[%clk 0:02:11.4]} 45... Re7 {[%clk 0:01:28.8]}
46. Bxe6+ {[%clk 0:02:09.9]} 46... Kf8 {[%clk 0:01:29.1]} 47. Qd8+ {[%clk
0:02:11]} 47... Re8 {[%clk 0:01:24.9]} 48. Qxf6# {[%clk 0:02:12.9]} 1-0

[Event "*** MasterClass Titled Tuesday Blitz"]
[Site "Chess.com"]
[Date "2017.10.03"]
[Round "10"]
[White "SCIM"]
[Black "SergeiAza"]
[Result "0-1"]
[WhiteElo "2454"]
[BlackElo "2709"]
[TimeControl "180+2"]
[EndTime "15:13:21 PDT"]
[Termination "SergeiAza won by resignation"]

1. d4 {[%clk 0:03:01.9]} 1... Nf6 {[%clk 0:02:59.5]} 2. c4 {[%clk 0:03:02.9]}
2... e6 {[%clk 0:03:00.5]} 3. Nc3 {[%clk 0:03:04.4]} 3... Bb4 {[%clk 0:03:01.4]}
4. Qc2 {[%clk 0:03:05.9]} 4... b6 {[%clk 0:03:02.1]} 5. e4 {[%clk 0:03:05.3]}
5... c5 {[%clk 0:03:01.7]} 6. d5 {[%clk 0:03:05.8]} 6... O-O {[%clk 0:03:01.5]}
7. e5 {[%clk 0:02:59.3]} 7... Ng4 {[%clk 0:02:57.5]} 8. Nf3 {[%clk 0:02:34.1]}
8... exd5 {[%clk 0:02:56.1]} 9. cxd5 {[%clk 0:02:29.5]} 9... Nxe5 {[%clk
0:02:54.4]} 10. Nxe5 {[%clk 0:02:23.4]} 10... Re8 {[%clk 0:02:55.2]} 11. f4
{[%clk 0:01:45.9]} 11... d6 {[%clk 0:02:46.1]} 12. Bd3 {[%clk 0:01:45.9]} 12...
Qh4+ {[%clk 0:02:14.9]} 13. g3 {[%clk 0:01:37.5]} 13... Qh3 {[%clk 0:02:15.9]}
14. Be3 {[%clk 0:01:14.3]} 14... dxe5 {[%clk 0:02:14.4]} 15. O-O-O {[%clk
0:01:14.9]} 15... Bg4 {[%clk 0:02:02.9]} 16. Rdf1 {[%clk 0:01:06.8]} 16... Nd7
{[%clk 0:01:47.7]} 17. Ne4 {[%clk 0:01:04.7]} 17... c4 {[%clk 0:01:30.5]} 18.
Bxc4 {[%clk 0:00:54.1]} 18... Rac8 {[%clk 0:01:30.6]} 19. Nf2 {[%clk 0:00:31.4]}
19... Qh5 {[%clk 0:01:30.1]} 20. h3 {[%clk 0:00:22.3]} 20... Bf5 {[%clk
0:01:17.3]} 21. Qb3 {[%clk 0:00:18]} 21... Qe2 {[%clk 0:01:13.8]} 0-1